Cogmind - Beta 14 @@@ ROGUE MODE // 2024.09.21 @ 19:57:58 Player: Mallow Result: Destroyed by S-10 Pest with Light Assault Rifle Performance ------------- Evolutions (0) 0 Regions Visited (1) 200 Robots Destroyed (9) 45 Value Destroyed (217) 217 Prototype IDs (0) 0 Alien Tech Used (0) 0 Bonus (0) 0 TOTAL SCORE: 462 Bonus ------- None Cogmind --------- Core Integrity 0/250 Matter 300/300 Energy 100/100 System Corruption 3% Temperature Cool (0) Movement Core (350) Ox6 Location -10/Materials Parts ------- > --- POWER (1) -------- (None) > --- PROPULSION (2) --- (None) > --- UTILITY (2) ------ Large Storage Unit Structural Scanner > --- WEAPON (2) ------- (None) > --- INVENTORY (15) --- Small Storage Unit Terrain Scanner Peak State ------------ > --- POWER ------------ Ion Engine > --- PROPULSION ------- Light Treads Light Treads > --- UTILITY ---------- Small Storage Unit Structural Scanner > --- WEAPON ----------- Medium Laser Assault Rifle > --- INVENTORY -------- Ion Engine [Rating: 7] Favorites ----------- Power Ion Engine Engine Ion Engine Propulsion Light Treads Treads Light Treads Utility Structural Scanner Device Structural Scanner Storage Large Storage Unit Weapon Assault Rifle Energy Gun Medium Laser Ballistic Gun Assault Rifle Build | -11 -10 ------- Run | Yrd Mat Slots Evolved . | . . Power . | . . Propulsion . | . . Utility . | . . Weapon . | . . Parts Attached 9 | 6 3 Power 2 | 1 1 Engine 2 | 1 1 Core . | . . Reactor . | . . Propulsion 2 | 2 . Treads 2 | 2 . Leg . | . . Wheel . | . . Hover . | . . Flight . | . . Utility 3 | 1 2 Device 1 | . 1 Storage 2 | 1 1 Processor . | . . Hackware . | . . Protection . | . . Artifact . | . . Weapon 2 | 2 . Energy Gun 1 | 1 . Energy Cannon . | . . Ballistic Gun 1 | 1 . Ballistic Cannon . | . . Launcher . | . . Special Weapon . | . . Impact Weapon . | . . Slashing Weapon . | . . Piercing Weapon . | . . Special Melee Weapon . | . . Unidentified Prototypes . | . . Parts Lost 6 | . 6 Power 2 | . 2 Propulsion 2 | . 2 Utility . | . . Weapon 2 | . 2 Highest Loss Streak 6 | . 6 To Critical Strikes . | . . Average Slot Usage (%) 93 | . 93 Engine 13 | . 13 Treads 27 | . 27 Device 11 | . 11 Storage 14 | . 14 Energy Gun 13 | . 13 Ballistic Gun 13 | . 13 Peak Build Rating 7 | 6 7 Average Rating 6 | 4 6 On Entrance 3 | . 6 Naked Turns . | . . Heaviest Build 30 | 14 30 Greatest Support 40 | 40 40 Greatest Overweight (x) 1 | . 1 Average Overweight (x) . | . . Largest Inventory Capacity 15 | 8 15 Average Capacity 11 | 7 11 Most Carried 3 | 2 3 Average Carried 2 | . 2 Final Capacity 15 | 8 15 Final Carried 2 | 1 2 Class Distribution -------------------- 100% | Mutant Dominant Class ---------------- Mutant | -10/Materials Resources | -11 -10 ----------- Run | Yrd Mat Matter Collected 387 | 207 180 Remotely . | . . Salvage Created 305 | . 305 Parts 17 | . 17 Haulers Intercepted 1 | . 1 Recyclers Shooed . | . . Parts Field Recycled . | . . Retrieved Matter . | . . Parts Self-Destructed . | . . Prevented . | . . Kills | -11 -10 ------- Run | Yrd Mat Combat Hostiles Destroyed 4 | . 4 Guns 3 | . 3 Classes Destroyed 5 | . 5 Builder 1 | . 1 Hauler 1 | . 1 Operator 2 | . 2 Watcher 1 | . 1 Grunt 4 | . 4 Best Kill Streak 1 | . 1 Combat Bots Only 1 | . 1 Max Kills in Single Turn 1 | . 1 Gunslinging . | . . Exploded . | . . Melee . | . . Uniques/NPCs Destroyed . | . . Combat | -11 -10 -------- Run | Yrd Mat Hostile Shots Fired 101 | . 101 Missed 15 | . 15 Damage Taken 901 | . 901 Core 254 | . 254 Absorbed by Shields . | . . Core Remaining (%) 100 | 100 . Volleys Fired 36 | . 36 Largest 2 | . 2 Hottest 70 | . 70 Shots Fired 68 | . 68 Gun 68 | . 68 Cannon . | . . Launcher . | . . Special . | . . Kinetic 36 | . 36 Thermal 32 | . 32 Explosive . | . . Electromagnetic . | . . Robot Hit Streak 11 | . 11 Robot Miss Streak 3 | . 3 Penetration Max . | . . Secondary Targets 1 | . 1 Max Gunslinging Chain 1 | . 1 Shots Hit Robots 46 | . 46 Core Hits 17 | . 17 Critical Kills . | . . Critical Parts Destroyed . | . . Critical Strikes 2 | . 2 Burn 2 | . 2 Melee Attacks . | . . Impact . | . . Slashing . | . . Piercing . | . . Sneak Attacks . | . . Combat Hostiles . | . . Follow-up Attacks . | . . Damage Inflicted 606 | 11 595 Guns 585 | . 585 Cannons . | . . Explosions . | . . Melee . | . . Ramming 21 | 11 10 Kinetic 259 | . 259 Thermal 326 | . 326 Explosive . | . . Electromagnetic . | . . Impact . | . . Slashing . | . . Piercing . | . . Highest Corruption 3 | . 3 Average Corruption 1 | . 1 Corruption Purged . | . . Corruption Blocked . | . . Effects 11 | . 11 Message Errors 1 | . 1 Matter Fused 6 | . 6 Heat Flow Errors 1 | . 1 Energy Discharges 1 | . 1 Data Loss (minor) 1 | . 1 Data Loss (major) 1 | . 1 Overload Shots . | . . Overflow Damage . | . . Projectiles . | . . Explosions . | . . Melee . | . . Knockbacks . | . . Impact . | . . Kinetic . | . . Secondary . | . . Self-Inflicted Damage . | . . Shots . | . . Rammed 17 | 2 15 Targets Rammed 17 | 2 15 Kicked . | . . Crushed . | . . Highest Temperature 209 | . 209 Average Temperature 62 | . 62 Received Heat Transfer 261 | . 261 Siege Activations . | . . Robots Corrupted . | . . Combat Hostiles . | . . Parts Fried . | . . Impact Corruptions . | . . Robots Melted 1 | . 1 Combat Hostiles 1 | . 1 Parts Melted 3 | . 3 Heat Transferred 1110 | . 1110 Parts Sabotaged . | . . Parts Stolen . | . . Parts Stripped . | . . Power Chain Reactions . | . . Alert | -11 -10 ------- Run | Yrd Mat Peak Influence 117 | . 117 Initial . | . . Average 42 | . 47 Maximum Alert Level . | . . Low Security (%) 100 | 100 100 Level 1 . | . . Level 2 . | . . Level 3 . | . . Level 4 . | . . Level 5 . | . . High Security . | . . Max Security . | . . Squads Dispatched 1 | . 1 Investigation . | . . Extermination . | . . Reinforcement 1 | . 1 Assault . | . . Garrison . | . . Intercept . | . . Searches Triggered . | . . Construction Impeded . | . . Haulers Reinforced . | . . Active Scanning Responses . | . . Cargo Convoy Interrupts . | . . Stealth | -11 -10 --------- Run | Yrd Mat Distress Signals 1 | . 1 Communications Jammed . | . . Distress Signals . | . . Times Spotted 22 | . 22 Peak Tracking Total 5 | . 5 Tactical Retreats 3 | . 3 Traps | -11 -10 ------- Run | Yrd Mat Traps Triggered 2 | . 2 Indirectly . | . . Trap Hack Attempts . | . . Triggered . | . . Disarmed . | . . Reprogrammed . | . . Reused . | . . Traps Extracted . | . . Installed . | . . Triggered . | . . Machines | -11 -10 ---------- Run | Yrd Mat Machines Disabled . | . . Max in Single Turn . | . . Machines Repaired . | . . Machines Dismantled . | . . Machines Sabotaged . | . . Overloaded Fab Kills . | . . Hacking | -11 -10 --------- Run | Yrd Mat Machines Accessed 2 | . 2 Terminals 2 | . 2 Fabricators . | . . Repair Stations . | . . Recycling Units . | . . Scanalyzers . | . . Garrison Access . | . . Total Hacks 6 | . 6 Successful 3 | . 3 Failed 3 | . 3 Catastrophic . | . . Database Lockouts . | . . Manual . | . . Terminals 6 | . 6 Fabricators . | . . Repair Stations . | . . Recycling Units . | . . Scanalyzers . | . . Garrison Access . | . . Terminal Hacks 3 | . 3 Dispatch Records 1 | . 1 Transport Status 1 | . 1 Zone Layout 1 | . 1 Fabricator Hacks . | . . Repair Station Hacks . | . . Recycling Unit Hacks . | . . Scanalyzer . | . . Garrison Access Hacks . | . . Unauthorized Hacks . | . . Terminals . | . . Fabricators . | . . Repair Stations . | . . Recycling Units . | . . Scanalyzers . | . . Garrison Access . | . . Data Cores Recovered 1 | . 1 Used . | . . Hacking Detections 2 | . 2 Full Trace Events . | . . Feedback Events . | . . Feedback Blocked . | . . Robot Schematics Acquired . | . . Robots Built . | . . Authchips . | . . Time . | . . Total Robot Build Rating . | . . Part Schematics Acquired . | . . Parts Built . | . . Authchips . | . . Time . | . . Total Part Build Rating . | . . Parts Repaired . | . . Time . | . . Parts Recycled . | . . Recycled Matter . | . . Retrieved Matter . | . . Retrieved Components . | . . Parts Scanalyzed . | . . Part Schematics Acquired . | . . Parts Damaged . | . . Bothacking | -11 -10 ------------ Run | Yrd Mat Used RIF Installer . | . . Robots Hacked . | . . Non-combat . | . . Combat . | . . Robot Hacks Applied . | . . Relay Couplers Released . | . . Fabnet Peak Effective % . | . . Robots Rewired . | . . Allies Hacked . | . . Hacks Repelled . | . . Allies | -11 -10 -------- Run | Yrd Mat Total Allies . | . . Largest Group . | . . Highest-Rated Group . | . . Highest-Rated Ally . | . . Total Orders . | . . Ally Attacks . | . . Total Damage . | . . Kills . | . . Allies Corrupted . | . . Allies Melted . | . . Intel | -11 -10 ------- Run | Yrd Mat Robot Analysis Total . | . . Derelict Logs Recovered . | . . Drone Launches . | . . Drone Recoveries . | . . Exploration | -11 -10 ------------- Run | Yrd Mat Turns Passed 1006 | 110 896 Spaces Moved 522 | 62 460 Core 2 | 2 . Treads 520 | 60 460 Legs . | . . Wheels . | . . Hover . | . . Flight . | . . Fastest Speed 50 | 50 160 Average Speed 161 | 156 161 Slowest Speed 240 | 160 240 Overloaded Moves . | . . Propulsion Burnouts . | . . Robots Hopped . | . . Cave-ins Triggered . | . . Exploration Rate (%) 28 | 5 51 Regions Visited 1 Branch Regions . Pre-discovered Areas . | . . Known Exits Taken . | . . Unknown Exits Taken 1 | 1 . Scrap Searched . | . . Spaces Dug . | . . Terrain Destroyed . | . . Melee . | . . Projectile . | . . AOE . | . . Terrain Rammed . | . . Walls Destroyed . | . . Machines Disabled . | . . Actions | -11 -10 --------- Run | Yrd Mat Total 593 | 71 522 Wait 7 | . 7 Move 521 | 61 460 Hop . | . . Pick Up 3 | 2 1 Fast Attach 6 | 5 1 Attach 2 | 1 1 Detach . | . . Swap 1 | . 1 Drop . | . . Fire 36 | . 36 Melee . | . . Ram 2 | . 2 Kick . | . . Crush 15 | 2 13 Escape Stasis . | . . Rewire . | . . Trap . | . . Miscellaneous . | . . Route ------- -11/Scrapyard -10/Materials (discovered 2 exits: [*Mat] / [*Min]) History --------- Turn | Location | Event 7 | -11/Scrapyard | Discovered new exit (range 15) 111 | -11/Scrapyard | Entered Materials 198 | -10/Materials | Discovered new exit (range 5) 309 | -10/Materials | Build established: Mutant 697 | -10/Materials | Discovered new exit (range 15) 929 | -10/Materials | Core integrity fell below 50% 990 | -10/Materials | Core integrity fell below 20% 1007 | -10/Materials | Destroyed by S-10 Pest with Light Assault Rifle Last Messages --------------- G-47 Trooper heat short circuits Lgt. Nuclear Core. R-06 Scavenger collects Lgt. Ion Engine. System corrupted: Matter fused (-9). G-47 Trooper destroyed. Switching to secondary target: S-10 Pest. Lgt. Treads destroyed. Med. Laser destroyed. Assault Rifle destroyed. R-06 Scavenger collects Imp. Heat Sink. Slammed into S-10 Pest. Ion Engine destroyed. Slammed into S-10 Pest. Acquired 26 matter. Slammed into S-10 Pest. Lgt. Treads destroyed. Slammed into S-10 Pest. Structural Scanner broken. Destabilizing: Short circuit. Slammed into S-10 Pest. Destabilizing: System corrupted (+2). Map ----- +----------------------------------------------------+ | | | ?????????????????????????????????????????????????? | | ?????????????????????????????????????????????????? | | ?????????????????????????????????????????????????? | | ?????????????????????????????????????????????????? | | ?????????????????????????????????????????????????? | | ?????????????????????????????????????????????????? | | ?????????????????????????????????????#####???????? | | ?????????????????????????????????????# ######### | | ?????????????????????????????????????# # """ | | ?????????????????????????????????#??## # "T" | | ?????????????????????????# #T##### # | | ?????????????????????????# # """ "" | | ?????????????????????????+ + """ " | | ?????????????????????????# # """ " | | ?????????????????????????# ###### ## | | ??????????????????????????# ??????## ## | | ???????????????????????????????????## ########## | | ???????????????????????????????????## ########?? | | ???????????????????????????????????## # #?? | | ???????????????????????????????????## #""" #?? | | ???????????????????????????????????## #""" #?? | | ????????????????? ####### #""" ### | | ????????????????? ################### # ### | | ???????????????? # % %# """" # #""" # | | ???????????????? + """%@sg"""" # #""" # | | ???????????????? # """%%# """" + #"???? #| | | ????????????????? # """ # # + ???? # | | ????????????????? # # # # ???? # | | ????????????????? ###+############### # """ ## | | ????????????????? ### ############### ######### | | ???????????????????????????????????## + ##% | | ???????????????????????????????????## # """ ##^ | | ???????????????????????????????????## # """ ## | | ???????????????????????????????????## # """ # | | ???????????????????????????????????## # """ # | | ???????????????????????????????????## # """ + | | ???????????????????????????????????## + # | | ????????????????????????? ### # """ # | | ?????????????????????????############ #* """ ### | | ?????????????????????????## # # """ ### | | ?????????????????????????## """ # + """ ### | | ?????????????????????????##""""" + # """ ### | | ?????????????????????????##""""" # # ### | | ?????????????????????????##""""" # ########## | | ?????????????????????????## """ # # ### | | ?????????????????????????## # # ### | | ?????????????????????????## # + ### | | ?????????????????????????############ # """ ### | | ?????????????????????????## | # # """ ### | +----------------------------------------------------+ Best States ------------- Heat Dissipation 25 Energy Generation 10 Energy Capacity 250 Matter Stores 300 Matter Capacity 300 Sight Range 16 Terrain Scan Density 10 Evasion (%) 40 Recoil Reduction 2 Item Schematics ----------------- None Robot Schematics ------------------ None Fabricated ------------ Nothing Alien Tech Used ----------------- None Achievements -------------- None Challenges ------------ None Game ------ Seed BlastHardcellPerforator Manual? 0 Play Time 00:07:07 Cumulative 28.9 hours Start 2024.09.21 @ 19:52:14 End 2024.09.21 @ 19:57:58 Sessions 1 Manual Loads 0 Difficulty Rogue Special Mode None Game No. 52 Rogue 52 Adventurer 0 Explorer 0 Win Type - Total 0 Types 0/0/0/0/0/0/0/0/0 Lore% 12 Gallery% 31 Achievement% 23 Wizard Run 0 Options --------- Layout 0 ASCII 0 Keyboard 0 Movement Arrows Keybinds 0 Fullscreen 2 Font 24/Smallcaps Map View 56x25 Zoom Use 67% Tactical HUD 0 Map Filters NONE Filters NONE Steam 1 RUN: fe1ac8cf-c78a-47b9-bfb9-1643dc9c74be